bitfinex-derivatives/quotes_ETHF0:USTF0_20260310
["timestamp","ask_amount","ask_price","bid_price","bid_amount"]
[1773171043880,0.58195652,2033.1,2031.7,0.56761845]
[1773171044388,0.5773437,2032.9,2031.7,0.56761845]
[1773171048690,0.58638923,2032.7,2031.7,0.56761845]
[1773171050393,0.57988694,2032.9,2032.0,0.56307802]
[1773171050587,0.57988694,2032.9,2031.5,0.2461]
[1773171050788,0.57988694,2032.5,2031.6,0.56307802]
[1773171050985,0.57988694,2032.3,2031.6,0.56307802]
[1773171051688,0.57988694,2032.7,2031.6,0.56307802]
[1773171052792,0.57988694,2032.5,2031.6,0.56307802]
[1773171054187,0.57988694,2032.3,2031.2,0.56307802]
[1773171054388,0.57988694,2032.3,2031.1,0.00498279]
[1773171054389,0.57988694,2031.9,2031.1,0.00498279]
[1773171054691,0.57988694,2031.7,2031.1,0.00498279]
[1773171054987,0.57988694,2031.5,2030.4,0.56307802]
[1773171055783,0.58575898,2031.5,2030.4,0.56787841]
[1773171057894,0.57988694,2031.4,2030.4,0.56787841]
[1773171058096,0.00587204,2031.5,2030.6,0.56307802]
[1773171058595,0.58575898,2031.5,2030.6,0.56307802]
[1773171060091,0.00587204,2031.5,2030.6,0.56307802]
[1773171060696,0.58575898,2031.5,2030.6,7.00307802]
[1773171060890,0.58575898,2031.5,2030.7,0.56307802]
[1773171061096,0.57988694,2031.4,2030.7,0.56307802]
[1773171061303,0.57988694,2031.4,2030.5,0.56307802]
[1773171061507,0.57988694,2031.2,2030.1,0.56307802]
[1773171062204,0.57988694,2030.8,2029.7,0.56307802]
[1773171062403,7.01988694,2030.8,2029.7,0.56307802]
[1773171062605,0.57988694,2030.7,2029.7,0.5694318]
[1773171064309,0.57988694,2030.7,2029.8,0.56307802]
[1773171064906,0.57988694,2030.7,2029.7,0.5694318]
[1773171067603,0.57988694,2030.5,2029.7,0.00635378]
[1773171067804,0.57988694,2030.5,2029.7,0.5694318]
[1773171068010,0.57988694,2030.7,2029.7,0.5694318]
[1773171069010,0.57988694,2030.7,2029.8,0.56307802]
[1773171069215,0.57988694,2030.9,2029.8,0.56307802]
[1773171069708,0.57988694,2031.4,2030.3,0.56307802]
[1773171070302,0.57988694,2031.6,2030.7,0.56307802]
[1773171071306,0.57988694,2032.1,2031.0,0.56307802]
[1773171072405,0.58375024,2032.1,2031.0,0.56307802]
[1773171072612,0.58375024,2032.1,2030.9,2.90435956]
[1773171072613,0.0038633,2032.1,2031.2,3.46743758]
[1773171072811,0.0038633,2032.1,2031.3,0.56307802]
[1773171073109,0.58375024,2032.1,2031.3,0.56307802]
[1773171075113,0.0038633,2032.1,2031.3,0.56307802]
[1773171075412,0.58375024,2032.1,2031.2,0.56752611]
[1773171077212,0.0038633,2032.1,2031.4,0.56307802]
[1773171078208,0.57988694,2032.6,2031.5,0.56307802]
[1773171079009,0.57988694,2033.0,2032.0,0.56307802]
[1773171079216,0.58535449,2033.0,2032.0,0.56307802]
[1773171080118,0.58535449,2033.0,2032.2,0.59193575]
[1773171080119,0.00546755,2033.0,2032.2,0.59193575]
[1773171080717,0.56166795,2033.0,2031.7,0.59193575]
[1773171080915,0.5562004,2032.8,2031.9,0.59193575]
[1773171081721,0.5562004,2032.2,2031.3,0.59193575]
[1773171084218,0.5562004,2032.4,2031.5,0.59193575]
[1773171085917,0.5562004,2032.6,2031.5,0.59193575]
[1773171086123,0.5562004,2032.6,2031.7,0.59193575]
[1773171086327,0.5562004,2032.6,2031.8,0.59193575]
[1773171086816,0.5562004,2032.9,2031.8,0.59193575]
[1773171087216,0.00546755,2033.0,2032.4,0.59193575]
[1773171087620,0.56166795,2033.0,2032.2,0.59193575]
[1773171088526,0.56166795,2033.0,2031.9,0.59193575]
[1773171088727,0.56166795,2033.0,2032.0,0.59193575]
[1773171090227,0.56166795,2033.0,2032.1,0.59193575]
[1773171091624,0.5562004,2033.2,2032.4,0.59193575]
[1773171091818,0.5562004,2033.6,2032.4,0.59193575]
[1773171092024,0.5562004,2033.6,2032.7,0.59193575]
[1773171092428,0.5562004,2034.2,2033.0,0.59193575]
[1773171092629,0.5562004,2034.2,2032.9,2.90435956]
[1773171092630,0.5562004,2034.2,2033.2,0.59193575]
[1773171092830,0.00508848,2034.2,2033.5,0.59193575]
[1773171093020,0.2457,2034.9,2033.5,0.59193575]
[1773171093021,0.5562004,2034.8,2033.5,0.59193575]
[1773171094029,0.5611383,2034.8,2033.5,0.59193575]
[1773171094535,0.5611383,2034.8,2033.7,0.59193575]
[1773171094834,0.5562004,2034.2,2033.3,0.59193575]
[1773171096022,0.5562004,2034.0,2032.9,0.59193575]
[1773171096428,0.5562004,2034.0,2033.0,0.59736737]
[1773171096923,0.5562004,2034.0,2033.0,0.00543162]
[1773171097720,0.5562004,2034.0,2033.0,0.59736737]
[1773171100726,0.5562004,2033.6,2032.4,0.59193575]
[1773171101229,0.5562004,2033.4,2032.2,0.59193575]
[1773171101731,0.5562004,2033.2,2032.2,0.5958746]
[1773171101932,0.56104899,2033.2,2032.2,0.5958746]
[1773171104427,0.5562004,2032.8,2032.2,0.00393885]
[1773171104629,0.5562004,2032.8,2031.8,0.59193575]
[1773171105634,0.5562004,2032.8,2031.8,0.59724118]
[1773171106536,0.5562004,2032.8,2032.0,0.59193575]
[1773171106832,0.54710016,2033.1,2032.0,0.59193575]
[1773171107233,0.54710016,2033.0,2032.0,0.59193575]
[1773171108037,0.54710016,2032.6,2031.8,0.60218187]
[1773171108637,0.54710016,2032.6,2031.2,2.90427558]
[1773171108638,0.54710016,2032.4,2031.3,0.59687644]
[1773171109640,0.54710016,2032.4,2031.3,0.60163964]
[1773171111445,0.54710016,2032.4,2031.4,0.58194302]
[1773171111643,0.54710016,2032.4,2031.5,0.58194302]
[1773171116244,0.54710016,2032.4,2031.3,0.58670622]
[1773171116938,0.57382739,2032.2,2031.3,0.58670622]
[1773171119644,0.57382739,2032.0,2031.3,0.0047632]
[1773171120244,0.57382739,2031.8,2030.6,0.58194302]
[1773171120441,0.57382739,2032.0,2030.9,0.58194302]
[1773171121443,0.57382739,2032.0,2031.0,0.58194302]
[1773171121845,0.57382739,2031.9,2031.0,0.58194302]
[1773171122441,0.57382739,2031.7,2030.4,0.58194302]
[1773171123150,0.57382739,2031.5,2030.4,0.58194302]
[1773171123350,0.57382739,2031.1,2030.2,0.58194302]
[1773171123549,0.57382739,2031.1,2030.2,0.58661869]
[1773171123550,0.58017003,2031.1,2030.2,0.58661869]
[1773171126547,0.00634264,2031.1,2030.2,0.58661869]
[1773171126748,0.57382739,2031.3,2030.4,0.58194302]
[1773171126948,0.57382739,2031.2,2030.2,0.58661869]
[1773171127142,0.57382739,2031.0,2030.2,0.58661869]
[1773171127850,0.5791389,2031.0,2030.2,0.58661869]
[1773171129351,0.00531151,2031.0,2030.2,0.58661869]
[1773171130243,0.5791389,2031.0,2030.2,0.58661869]
[1773171131445,0.57382739,2031.4,2030.2,0.58661869]
[1773171132344,0.57382739,2031.4,2030.4,0.58194302]
[1773171132544,0.57986137,2031.4,2030.4,0.58194302]
[1773171133555,0.57986137,2031.4,2030.5,0.58194302]
[1773171134359,0.57382739,2031.2,2030.2,0.58661869]
[1773171135458,0.57382739,2031.2,2030.3,0.58194302]
[1773171136352,0.57382739,2031.0,2030.2,0.00467567]
[1773171136553,0.57382739,2030.8,2030.2,0.00467567]
[1773171136954,0.57382739,2030.8,2030.2,0.58661869]
[1773171137655,0.57382739,2031.0,2030.2,0.58661869]
[1773171140966,0.58923642,2031.3,2030.2,0.58661869]
[1773171142463,0.58923642,2031.3,2030.3,0.58925486]
[1773171143165,0.58923642,2031.1,2030.3,0.58925486]
[1773171144865,0.58923642,2030.9,2030.2,0.00467567]
[1773171145065,0.58923642,2030.7,2029.9,0.58925486]
[1773171145973,0.58923642,2030.7,2029.9,0.5954013]
[1773171146670,0.58923642,2031.1,2030.0,0.58925486]
[1773171147169,0.58923642,2030.9,2030.0,0.58925486]
[1773171149873,0.58923642,2030.8,2030.0,0.58925486]
[1773171150370,0.58923642,2030.8,2029.9,6.44914644]
[1773171150371,0.58923642,2030.6,2029.9,0.00614644]
[1773171151866,0.58923642,2030.6,2029.9,0.5954013]
[1773171154070,0.58923642,2030.6,2029.9,0.00614644]
[1773171154474,0.58923642,2030.6,2029.9,0.5954013]
[1773171155471,0.58923642,2030.4,2029.5,0.56567023]
[1773171155774,0.58923642,2030.4,2029.4,6.443]
[1773171155972,0.58923642,2030.4,2029.5,0.56567023]
[1773171156572,0.58923642,2030.4,2029.5,0.57003359]
[1773171156778,0.58923642,2030.2,2029.5,0.57003359]
[1773171157276,0.58923642,2030.6,2029.5,0.57003359]
[1773171157576,0.58923642,2030.6,2029.6,0.55388432]
[1773171157970,0.58923642,2031.0,2030.0,0.55388432]
[1773171158174,0.58923642,2031.0,2029.6,2.90427558]
[1773171158175,0.58923642,2031.3,2030.2,0.55388432]
[1773171158473,0.58923642,2031.3,2030.3,6.443]
[1773171158675,0.58923642,2031.3,2030.4,0.55388432]
[1773171158868,0.58923642,2031.3,2030.1,0.24628]
[1773171158869,0.58923642,2031.3,2030.6,0.55551905]
[1773171159271,0.58923642,2031.3,2030.2,0.55551905]
[1773171159478,0.58923642,2031.1,2030.3,6.443]
[1773171159871,0.58923642,2031.1,2030.1,0.55551905]
[1773171160077,0.58923642,2031.1,2030.1,6.443]
[1773171160678,0.58923642,2030.9,2029.9,0.55551905]
[1773171160973,0.58923642,2030.7,2029.7,6.99468022]
[1773171161370,0.58923642,2030.7,2029.8,0.55168022]
[1773171161570,0.58923642,2030.7,2029.7,6.442]
[1773171161775,0.58923642,2030.5,2029.5,0.00436336]
[1773171162274,0.58923642,2029.9,2029.0,0.08572263]
[1773171162470,0.58923642,2029.7,2028.2,0.55604358]
[1773171163279,0.59395188,2029.7,2028.4,0.56242058]
[1773171163475,0.59395188,2029.7,2028.6,0.56242058]
[1773171164877,0.59395188,2029.7,2028.4,6.443]
[1773171165276,0.58923642,2029.5,2028.4,6.443]
[1773171165680,0.58923642,2029.5,2028.4,7.01626759]
[1773171165876,0.58923642,2029.5,2028.2,0.00630225]
[1773171165877,0.58923642,2029.5,2028.2,0.57956984]
[1773171166082,0.58923642,2029.5,2028.2,7.02256984]
[1773171166379,0.58923642,2029.3,2028.2,7.02256984]
[1773171167383,0.58923642,2029.3,2028.3,0.58360851]
[1773171169475,0.58923642,2029.3,2028.3,7.02760851]
[1773171169679,0.58923642,2029.3,2028.4,6.99414054]
[1773171170182,0.58923642,2029.3,2028.5,0.55014054]
[1773171170385,0.58923642,2029.3,2028.7,0.55014054]
[1773171170582,0.58923642,2029.3,2028.3,0.55014054]
[1773171170783,0.58923642,2029.3,2028.5,0.55014054]
[1773171171785,0.60219146,2029.6,2028.7,0.55014054]
[1773171172881,0.60219146,2029.6,2028.9,0.55014054]
[1773171173087,0.60219146,2029.6,2029.0,6.444]
[1773171173980,0.60219146,2030.4,2029.3,0.55014054]
[1773171174186,0.60219146,2030.4,2029.4,6.444]
[1773171174577,0.60219146,2030.4,2029.5,6.444]
[1773171174782,0.60587014,2030.4,2029.5,6.99414054]
[1773171174979,0.60587014,2030.4,2029.6,0.55014054]
[1773171176689,0.60587014,2030.4,2029.6,6.444]
[1773171177287,0.60587014,2030.4,2029.6,6.99336765]
[1773171177590,0.60587014,2030.4,2029.7,0.54936765]
[1773171177786,0.60587014,2030.4,2029.7,0.55343795]
[1773171178291,0.00367868,2030.4,2029.7,0.55343795]
[1773171180387,0.60587014,2030.4,2029.8,6.443]
[1773171180587,0.60587014,2030.4,2029.7,0.0040703]
[1773171180787,0.60587014,2030.4,2029.8,0.54297487]
[1773171180984,0.00367868,2030.4,2029.8,0.54297487]
[1773171181585,0.60219146,2030.8,2029.9,0.54297487]
[1773171181989,0.60219146,2031.5,2030.4,0.54297487]
[1773171182397,0.60219146,2031.5,2030.6,0.54297487]
[1773171182693,0.60219146,2031.5,2030.3,0.54297487]
[1773171182694,0.60219146,2031.3,2030.3,0.54297487]
[1773171182894,0.60219146,2031.3,2030.6,6.443]
[1773171184798,0.60219146,2031.3,2030.4,0.52857088]
[1773171184997,0.60219146,2031.3,2030.5,6.442]
[1773171185500,0.60219146,2031.3,2030.6,6.97057088]
[1773171185796,0.60219146,2031.3,2030.7,6.442]
[1773171186398,0.60219146,2031.3,2030.7,6.97057088]
[1773171187192,0.60219146,2031.3,2030.8,6.442]
[1773171187392,0.60219146,2031.3,2030.9,6.442]
[1773171187693,0.60219146,2031.4,2030.9,6.99214054]
[1773171187898,0.6061092,2031.5,2031.0,0.55014054]
[1773171188094,0.60219146,2032.0,2031.0,0.55014054]
[1773171188300,0.60219146,2032.3,2031.2,0.55014054]
[1773171188990,0.60754946,2032.3,2031.4,0.55014054]
[1773171189196,0.60219146,2032.1,2031.4,0.55014054]
[1773171189392,0.60219146,2031.5,2031.2,0.00353845]
[1773171189602,0.60219146,2031.5,2030.9,0.55014054]
[1773171189793,0.24609,2031.6,2031.0,0.55014054]
[1773171190000,0.60219146,2031.7,2031.0,0.55014054]
[1773171190303,0.60219146,2031.7,2031.1,6.442]
[1773171190604,0.60219146,2031.7,2031.1,0.00501928]
[1773171192307,0.60219146,2031.6,2031.1,0.00501928]
[1773171192994,0.60219146,2031.6,2030.9,6.441]
[1773171194002,0.60219146,2031.6,2030.9,6.44550275]
[1773171194301,0.60219146,2031.2,2030.6,6.441]
[1773171194501,0.60219146,2031.0,2030.3,6.441]
[1773171194701,0.60219146,2031.0,2030.3,6.99114054]
[1773171194897,0.60219146,2031.2,2030.4,0.55014054]
[1773171195101,0.60219146,2031.2,2030.4,0.55411843]
[1773171195903,0.60219146,2030.9,2030.4,0.00397789]
[1773171196102,0.60219146,2030.5,2029.9,6.441]
[1773171196307,0.60219146,2030.5,2029.9,6.442]
[1773171196509,0.60219146,2030.3,2029.6,0.55014054]
[1773171196707,0.60219146,2030.3,2029.6,6.99214054]
[1773171196909,0.60219146,2030.6,2029.7,0.55014054]
[1773171197207,0.60219146,2030.4,2029.7,6.44570648]
[1773171197602,0.60219146,2030.4,2029.3,0.55014054]
[1773171197603,0.60219146,2030.0,2029.3,0.55014054]
[1773171197907,0.60219146,2029.8,2029.1,6.99214054]
[1773171198500,0.60219146,2029.8,2028.9,6.99214054]
[1773171198699,0.60219146,2029.8,2029.0,0.55014054]
[1773171201107,0.60219146,2029.8,2029.1,7.03032021]
[1773171201712,0.60219146,2029.8,2029.2,0.58732021]
[1773171202011,0.2463,2029.9,2029.2,0.58732021]
[1773171202200,0.58728808,2030.0,2029.2,0.58732021]
[1773171202407,0.00447851,2030.6,2029.4,0.58732021]
[1773171202907,0.00447851,2030.6,2029.7,0.58732021]
[1773171203111,0.00447851,2030.6,2029.9,0.58732021]
[1773171203302,0.00447851,2030.6,2030.0,7.03132021]
[1773171203506,0.00447851,2030.6,2030.2,0.58732021]
[1773171204212,0.59176659,2030.6,2030.1,7.03132021]
[1773171205112,0.59176659,2030.6,2030.1,0.58732021]
[1773171205312,0.58728808,2030.4,2029.5,0.58732021]
[1773171205912,0.24623,2030.5,2029.5,0.58732021]
[1773171206609,0.83351808,2030.5,2029.5,0.58732021]
[1773171206913,0.58728808,2030.4,2029.7,0.58732021]
[1773171207116,0.24623,2030.5,2029.8,0.58732021]
[1773171207608,0.83351808,2030.5,2029.8,0.58732021]
[1773171207805,0.83351808,2030.5,2029.8,7.03132021]
[1773171208209,0.58728808,2030.4,2029.8,0.58732021]
[1773171209211,0.24623,2030.5,2029.8,0.58732021]
[1773171209514,0.59176659,2030.6,2029.8,0.58732021]
[1773171210106,0.58728808,2030.5,2029.9,0.58732021]
[1773171211216,0.25069851,2030.6,2029.9,0.58732021]
[1773171211920,0.00447851,2030.6,2029.9,0.58732021]
[1773171212112,0.00447851,2030.6,2030.1,0.58732021]
[1773171212313,0.59176659,2030.6,2029.9,0.58732021]
[1773171212917,0.83351808,2030.5,2029.9,7.03132021]
[1773171213818,0.00447851,2030.6,2030.0,0.58732021]
[1773171215017,0.59176659,2030.6,2030.0,0.58732021]
[1773171215219,0.59176659,2030.6,2029.7,7.03132021]
[1773171215819,0.59176659,2030.6,2029.8,0.58732021]
[1773171216720,0.58728808,2030.4,2029.8,0.58732021]
[1773171217110,0.58728808,2030.2,2029.8,0.58732021]
[1773171217319,0.58728808,2030.2,2029.1,0.58732021]
[1773171217520,0.00447851,2030.6,2029.3,0.58732021]
[1773171217521,0.58728808,2030.0,2029.3,0.58732021]
[1773171217710,0.83358808,2029.9,2029.3,0.58732021]
[1773171217915,0.2463,2029.9,2029.3,0.58732021]
[1773171218115,0.58728808,2030.1,2029.3,0.58732021]
[1773171218317,0.83353808,2030.3,2029.3,0.58732021]
[1773171218517,0.58728808,2030.2,2029.3,0.58732021]
[1773171219417,0.83356808,2030.1,2029.3,0.58732021]
[1773171219613,0.58728808,2030.0,2029.3,0.58732021]
[1773171220120,0.58728808,2030.0,2029.4,7.03132021]
[1773171220425,0.24628,2030.1,2029.5,0.58732021]
[1773171220622,0.58728808,2030.5,2029.5,0.58732021]
[1773171221219,0.83352808,2030.4,2029.5,0.58732021]
[1773171221921,0.58728808,2030.3,2029.5,0.58732021]
[1773171222922,0.58728808,2030.3,2029.7,0.58732021]
[1773171227229,0.57202286,2029.9,2029.5,0.57943098]
[1773171227427,6.06155851,2030.6,2028.9,0.00512184]
[1773171227428,0.57202286,2029.7,2029.3,0.57943098]
[1773171227627,0.57202286,2029.3,2028.9,0.58455282]
[1773171227936,0.57202286,2029.3,2028.8,0.57943098]
[1773171228836,0.57202286,2029.3,2028.8,0.58400045]
[1773171229037,0.24636,2029.4,2028.8,0.58400045]
[1773171229834,0.24636,2029.4,2028.9,0.58127175]
[1773171230139,0.8069138,2029.4,2028.9,0.58127175]
[1773171231641,0.5605538,2029.3,2028.9,0.58127175]
[1773171231941,0.5605538,2029.3,2028.8,0.00456947]
[1773171231942,0.5605538,2029.3,2028.8,0.58584122]
[1773171232441,0.24636,2029.4,2028.8,0.58584122]
[1773171232643,0.8069138,2029.4,2028.8,0.58584122]
[1773171234842,0.5605538,2029.3,2028.8,0.58584122]
[1773171236146,0.5605538,2029.3,2028.9,0.58127175]
[1773171236846,0.5605538,2029.8,2028.9,0.58127175]
[1773171237242,0.5605538,2029.6,2028.9,0.58127175]
[1773171237443,0.5605538,2029.4,2028.3,0.58127175]
[1773171238442,0.5605538,2029.4,2028.3,0.58527214]
[1773171238638,0.5605538,2029.2,2028.5,0.58127175]
[1773171239344,0.24637,2029.3,2028.5,0.58127175]
[1773171240841,0.5605538,2029.4,2028.5,0.58127175]
[1773171241343,0.5605538,2029.3,2028.5,0.58127175]
[1773171241543,0.5605538,2029.1,2028.5,0.58127175]
[1773171241744,0.5605538,2028.9,2028.4,0.58127175]
[1773171241941,0.5605538,2028.7,2028.3,0.00400039]
[1773171242445,0.8069838,2028.8,2028.3,0.58527214]
[1773171242840,0.5605538,2028.7,2028.3,0.00400039]
[1773171243046,0.5605538,2028.7,2028.3,0.58527214]
[1773171243246,0.5605538,2029.0,2028.0,0.58127175]
[1773171243450,0.56520383,2029.1,2028.0,0.58127175]
[1773171244046,0.5605538,2029.5,2028.6,0.58127175]
[1773171244347,0.5605538,2029.5,2028.5,0.24647]
[1773171244348,0.5605538,2030.0,2028.8,0.58127175]
[1773171244951,0.5605538,2030.0,2029.0,0.58127175]
[1773171245148,0.56407112,2030.0,2029.0,0.58561357]
[1773171245450,0.00351732,2030.0,2029.0,0.58561357]
[1773171246050,0.5605538,2030.5,2029.4,0.58127175]
[1773171246552,0.8067638,2030.7,2029.4,0.58127175]
[1773171246753,0.5605538,2030.6,2029.4,0.58127175]
[1773171247153,0.56662912,2030.6,2029.6,0.58127175]
[1773171247556,0.56662912,2030.6,2029.7,7.02627175]
[1773171247750,0.56662912,2030.6,2029.7,0.58127175]
[1773171248256,0.5605538,2030.4,2029.5,7.02627175]
[1773171248451,0.5605538,2030.4,2029.5,0.58127175]
[1773171249155,0.5605538,2030.4,2029.4,6.445]
[1773171249351,0.5605538,2030.4,2029.4,7.02627175]
[1773171249548,0.5605538,2030.4,2029.4,0.58127175]
[1773171249854,0.5605538,2030.2,2029.1,0.58127175]
[1773171250354,0.5605538,2030.2,2029.1,7.02627175]
[1773171250656,0.5605538,2030.0,2029.1,0.58127175]
[1773171250860,0.5605538,2029.8,2029.0,0.00434182]
[1773171251361,0.5605538,2029.8,2029.0,0.58561357]
[1773171254157,0.2463,2029.9,2029.0,0.58561357]
[1773171254363,0.5605538,2030.0,2029.0,0.58561357]
[1773171255357,0.5605538,2030.0,2029.2,0.58127175]
[1773171255563,0.5605538,2030.3,2029.2,0.58127175]
[1773171255964,0.5605538,2030.5,2029.4,0.58127175]
[1773171256161,0.00607532,2030.6,2029.4,0.58127175]
[1773171256355,0.5605538,2031.4,2030.0,0.58127175]
[1773171256555,0.5605538,2031.4,2030.2,0.58127175]
[1773171256858,0.5605538,2031.7,2030.4,0.58127175]
[1773171257058,0.5605538,2031.5,2030.4,0.58127175]
[1773171257253,0.56476875,2031.5,2030.4,0.58127175]
[1773171258354,0.5605538,2031.3,2030.4,0.58127175]
[1773171258559,0.5605538,2031.3,2030.4,7.02627175]
[1773171258754,0.5605538,2031.3,2030.5,0.58127175]
[1773171258960,0.5605538,2031.3,2030.5,0.58489264]
[1773171259159,0.5605538,2031.1,2030.5,0.00362089]
[1773171259665,0.54854737,2030.9,2030.1,0.57632743]
[1773171260561,0.54854737,2030.9,2030.1,0.58025533]
[1773171260959,0.54854737,2030.7,2030.1,0.58025533]
[1773171261362,0.54854737,2030.7,2030.1,0.0039279]
[1773171261563,0.54854737,2030.7,2030.1,0.58025533]
[1773171262056,0.54854737,2030.7,2030.1,0.0039279]
[1773171262768,0.54854737,2030.7,2030.1,0.58025533]
[1773171263163,0.54854737,2030.5,2029.7,0.57632743]
[1773171263367,0.54854737,2030.3,2029.5,0.57632743]
[1773171263662,0.54854737,2030.1,2029.5,0.57632743]
[1773171264368,0.54854737,2030.1,2029.5,0.00468911]
[1773171264863,0.54854737,2029.7,2029.1,0.57632743]
[1773171266062,0.55251403,2029.7,2029.1,0.58082083]
[1773171267068,0.00396666,2029.7,2029.1,0.58082083]
[1773171267463,0.54854737,2030.1,2029.1,0.58082083]
[1773171267968,0.54854737,2029.9,2029.1,0.58082083]
[1773171268469,0.55382317,2029.9,2029.1,0.58082083]
[1773171268766,0.0052758,2029.9,2029.1,0.58082083]
[1773171273567,0.55382317,2029.9,2029.3,0.57632743]
[1773171274373,0.55382317,2029.9,2029.4,0.57632743]
[1773171274773,0.0052758,2029.9,2029.4,0.57632743]
[1773171275576,0.55382317,2029.9,2029.4,0.57632743]
[1773171276874,0.55382317,2029.9,2029.3,7.02232743]
[1773171277480,0.55382317,2029.9,2029.4,0.57632743]
[1773171282983,0.55382317,2029.9,2029.3,0.57632743]
[1773171282984,0.54854737,2029.7,2029.3,0.57632743]
[1773171283879,0.79485737,2029.8,2029.3,0.57632743]
[1773171284477,0.54854737,2029.7,2029.2,7.02232743]
[1773171285181,0.54854737,2029.7,2029.3,0.57632743]
[1773171286377,0.54854737,2029.7,2029.1,7.02682083]
[1773171286683,0.54854737,2029.7,2029.2,0.57745408]
[1773171288079,0.24631,2029.8,2029.4,0.57745408]
[1773171288473,0.7920182,2029.8,2029.4,0.57745408]
[1773171288674,0.5457082,2029.7,2029.4,0.57745408]
[1773171289074,0.7920482,2029.6,2029.1,0.58194748]
[1773171289280,0.24634,2029.6,2029.1,0.58194748]
[1773171290478,0.0052758,2029.9,2029.1,0.58194748]
[1773171291280,0.7987871,2030.4,2029.2,0.58988723]
[1773171291683,0.24624,2030.4,2029.4,0.58988723]
[1773171291883,0.5525471,2030.6,2029.3,0.24637]
[1773171291884,0.5525471,2030.6,2029.6,0.58988723]
[1773171292084,0.5525471,2030.7,2029.6,0.58988723]
[1773171292288,0.55616903,2030.7,2029.6,0.58988723]
[1773171292777,0.5525471,2030.3,2029.6,0.58988723]
[1773171292980,0.5525471,2030.1,2029.2,0.58988723]
[1773171293183,0.5525471,2030.1,2029.4,7.03588723]
[1773171293384,0.5525471,2030.1,2029.5,0.58988723]
[1773171294687,0.5525471,2029.9,2029.2,0.58988723]
[1773171294986,0.5525471,2029.9,2029.3,7.03588723]
[1773171295184,0.5525471,2029.9,2029.4,0.58988723]
[1773171295581,0.5525471,2029.9,2029.2,0.58988723]
[1773171295782,0.5525471,2029.5,2028.4,0.58988723]
[1773171295983,0.5525471,2029.1,2028.4,0.58988723]
[1773171296185,0.24639,2029.2,2028.4,0.58988723]
[1773171296387,0.5525471,2029.3,2028.4,0.58988723]
[1773171296789,0.55748388,2029.3,2028.4,0.59461943]
[1773171297191,0.55748388,2029.3,2028.6,0.58988723]
[1773171297782,0.5525471,2029.7,2028.6,3.50210668]
[1773171297985,0.5525471,2029.7,2028.7,0.58988723]
[1773171298887,0.55867412,2029.7,2028.7,0.58988723]
[1773171299488,0.5525471,2029.5,2028.7,0.58988723]
[1773171299689,0.5525471,2029.3,2028.5,0.58988723]
[1773171300093,0.24639,2029.2,2028.5,0.58988723]
[1773171300291,0.24639,2029.2,2028.4,0.0047322]
[1773171300292,0.5525471,2029.1,2028.4,0.0047322]
[1773171301690,0.5525471,2029.1,2028.4,0.59461943]
[1773171302195,0.25245702,2029.7,2028.4,0.59461943]
[1773171302196,0.5525471,2029.3,2028.4,0.59461943]
[1773171302395,0.5525471,2029.2,2028.4,0.0047322]
[1773171302596,0.5525471,2029.0,2028.4,0.0047322]
[1773171302796,0.5525471,2029.2,2028.5,0.58988723]
[1773171304103,0.55867412,2029.7,2028.6,0.58988723]
[1773171304298,0.00612702,2029.7,2028.6,0.58988723]
[1773171305204,0.00612702,2029.7,2028.6,0.83633723]
[1773171305409,0.00612702,2029.7,2028.9,0.58988723]
[1773171305602,0.5525471,2030.2,2029.1,0.58988723]
[1773171306497,0.55627284,2030.2,2029.1,0.58988723]
[1773171307005,0.00372574,2030.2,2029.2,0.58988723]
[1773171307202,0.5525471,2030.1,2029.2,0.58988723]
[1773171307503,0.5525471,2030.1,2029.3,0.58988723]
[1773171308402,0.5525471,2029.9,2029.1,7.03688723]
[1773171308607,0.5525471,2029.9,2029.1,0.58988723]
[1773171310094,0.5525471,2029.5,2028.7,7.03688723]
[1773171310299,0.5525471,2029.5,2028.7,0.58988723]
[1773171310807,0.24634,2029.6,2028.7,0.58988723]
[1773171311006,0.5525471,2029.5,2028.7,0.58988723]
[1773171312006,0.5525471,2029.7,2028.9,0.58988723]
[1773171315003,0.5525471,2029.6,2028.9,0.58988723]
[1773171315306,0.5525471,2029.2,2028.4,0.0047322]
[1773171315506,0.2464,2029.1,2028.4,0.0047322]
[1773171315809,0.5525471,2029.0,2028.4,0.59461943]
[1773171317106,0.5525471,2029.0,2028.4,0.0047322]
[1773171317608,6.447,2029.4,2028.4,0.0047322]
[1773171317609,0.5525471,2028.8,2028.4,0.0047322]
[1773171317809,0.5525471,2028.8,2028.2,0.58988723]
[1773171318701,0.5525471,2028.8,2028.2,0.59601196]
[1773171319414,0.24642,2028.9,2028.2,0.59601196]
[1773171319608,0.83667151,2028.9,2028.2,0.59601196]
[1773171320112,0.59025151,2028.8,2028.2,0.59601196]
[1773171320712,0.24642,2028.9,2028.2,0.59601196]
[1773171321406,0.59025151,2029.0,2028.2,0.59601196]
[1773171321604,0.83662151,2029.4,2028.2,0.59601196]
[1773171322106,6.448,2029.8,2028.4,0.54566517]
[1773171322312,0.59025151,2029.7,2028.5,0.54566517]
[1773171323712,0.83655151,2029.9,2028.8,0.54566517]
[1773171323904,0.83655151,2029.9,2029.0,0.54566517]
[1773171324813,0.59025151,2029.8,2029.0,0.54566517]
[1773171326109,6.45172574,2030.2,2028.7,3.15865945]
[1773171326110,0.59025151,2029.6,2028.8,0.54566517]
[1773171327313,0.59025151,2030.0,2029.0,2.91221945]
[1773171327507,0.84024725,2030.2,2029.1,0.54566517]
[1773171327710,0.24999574,2030.2,2029.1,0.54566517]
[1773171328114,0.00372574,2030.2,2029.4,0.54566517]
[1773171328313,0.00372574,2030.2,2029.6,0.54566517]
[1773171329712,0.83646151,2030.7,2029.7,0.54566517]
[1773171330516,0.59025151,2030.6,2029.7,0.54566517]
[1773171330716,0.59665446,2030.6,2029.7,0.55031779]
[1773171331115,0.59025151,2030.4,2029.7,0.55031779]
[1773171331418,0.59025151,2030.0,2029.1,0.54566517]
[1773171332012,0.59025151,2029.8,2028.8,0.54566517]
[1773171332417,0.59025151,2029.8,2028.8,0.55145359]
[1773171333015,0.59025151,2029.6,2028.8,0.55145359]
[1773171334218,0.59025151,2029.8,2028.8,0.55145359]
[1773171334818,0.24632,2029.8,2028.8,0.55145359]
[1773171335120,0.59025151,2029.7,2028.8,6.99845359]
[1773171335324,0.59025151,2029.7,2028.9,0.54566517]
[1773171336215,0.59025151,2029.9,2028.9,0.54566517]
[1773171337417,0.59025151,2030.2,2028.9,0.54566517]
[1773171337814,0.24626,2030.3,2029.1,0.54566517]
[1773171338016,0.59025151,2030.2,2029.1,0.54566517]
[1773171338217,0.59025151,2030.2,2029.2,6.447]
[1773171338518,0.59025151,2030.4,2029.4,0.54566517]
[1773171338917,0.59665446,2030.6,2029.4,0.54566517]
[1773171340120,0.59665446,2030.6,2029.5,0.54566517]
[1773171340121,0.59025151,2030.2,2029.5,0.54566517]
[1773171341022,0.59025151,2030.0,2029.3,0.54566517]
[1773171341217,0.59025151,2030.0,2029.0,6.99266517]
[1773171341416,0.59025151,2030.0,2029.0,0.54566517]
[1773171341618,0.59025151,2030.0,2029.1,0.54566517]
[1773171342125,0.59025151,2030.2,2029.1,0.54566517]